bitfinex-derivatives/quotes_ETHF0:USTF0_20250422
["timestamp","ask_amount","ask_price","bid_price","bid_amount"]
[1745362839289,7.9644,1747.7,1747.5,1.14407]
[1745362839488,6.322,1747.7,1747.6,4.35186]
[1745362839690,6.322,1747.7,1747.6,7.70486]
[1745362839890,6.322,1747.7,1747.6,12.70486]
[1745362841101,6.322,1747.7,1747.6,6.06836]
[1745362842896,4.75044,1747.7,1747.6,11.06836]
[1745362843103,0.00859944,1747.9,1747.8,1.14392]
[1745362843303,0.00859944,1747.9,1747.8,9.48072]
[1745362843602,9.44e-06,1747.9,1747.8,14.48072]
[1745362844902,9.44e-06,1747.9,1747.8,1.14392]
[1745362845103,6.32200944,1747.9,1747.8,1.14392]
[1745362846799,6.32200944,1747.9,1747.7,0.00859944]
[1745362847003,4.36092,1747.8,1747.7,0.00859944]
[1745362847305,15.449,1747.8,1747.7,0.00859944]
[1745362847504,21.59292,1747.8,1747.7,0.00859944]
[1745362852909,21.59292,1747.8,1747.3,6.27222]
[1745362852910,1.14419,1747.4,1747.3,6.27222]
[1745362853213,7.46619,1747.4,1747.3,6.27222]
[1745362853402,6.322,1747.4,1747.3,6.27222]
[1745362854005,8.0083,1747.4,1747.3,6.27222]
[1745362854408,6.322,1747.4,1747.3,6.27222]
[1745362854607,6.322,1747.4,1747.3,7.88242]
[1745362856313,1.6863,1747.5,1747.4,1.14419]
[1745362856511,1.6863,1747.5,1747.3,5.128]
[1745362856717,1.14425,1747.3,1747.2,0.00859944]
[1745362856909,2.86064,1747.3,1746.8,3.2078]
[1745362857214,1.7417,1747.2,1746.8,4.35234]
[1745362857416,1.14446,1747.0,1746.9,1.14451]
[1745362857613,1.7417,1747.2,1746.8,4.35236]
[1745362857807,9.18264,1747.3,1746.8,4.35236]
[1745362857808,3.3102,1746.9,1746.8,1.14456]
[1745362858009,4.45471,1746.9,1746.8,0.00859944]
[1745362858315,10.77671,1746.9,1746.8,0.00859944]
[1745362858616,19.89451,1746.9,1746.8,0.00859944]
[1745362858918,1.14464,1746.7,1746.6,7.62571384]
[1745362860113,7.46664,1746.7,1746.6,7.62571384]
[1745362860620,1.14471,1746.6,1746.5,11.50237924]
[1745362860819,2.87761,1746.6,1746.5,5.6962914]
[1745362861022,7.87761,1746.6,1746.5,5.6962914]
[1745362861216,20.10961,1746.6,1746.5,5.6962914]
[1745362861521,20.10961,1746.6,1746.5,0.00859944]
[1745362862321,15.10961,1746.6,1746.5,0.00859944]
[1745362862520,8.0549,1746.6,1746.5,1.15337944]
[1745362863215,1.7329,1746.6,1746.5,1.15337944]
[1745362864222,2.87761,1746.6,1746.5,0.00859944]
[1745362864719,13.78761,1746.6,1746.5,0.00859944]
[1745362865225,20.10961,1746.6,1746.5,0.00859944]
[1745362867821,21.58791,1746.6,1746.5,0.00859944]
[1745362868120,16.58791,1746.6,1746.5,0.00859944]
[1745362868313,21.58791,1746.6,1746.5,0.00859944]
[1745362868519,13.9649,1746.6,1746.5,1.15337944]
[1745362869328,7.6429,1746.6,1746.5,1.15337944]
[1745362870122,0.00859944,1747.0,1746.9,1.14451]
[1745362870318,1.67669944,1747.0,1746.9,1.14451]
[1745362871213,7.99869944,1747.0,1746.7,4.7077]
[1745362871419,1.14452,1746.9,1746.8,1.14456]
[1745362871616,1.6123,1746.9,1746.8,1.14456]
[1745362872130,7.9343,1746.9,1746.8,1.14456]
[1745362873227,6.322,1746.9,1746.8,1.14456]
[1745362873830,6.322,1746.9,1746.8,6.14456]
[1745362874128,0.00859944,1747.0,1746.9,1.14451]
[1745362874435,1.6123,1747.4,1747.3,1.14425]
[1745362874619,10.26183,1747.7,1747.2,2.8608]
[1745362874925,1.14414,1747.5,1747.3,2.77962]
[1745362875131,1.7576,1747.4,1747.3,2.77962]
[1745362875330,7.46614,1747.5,1747.4,1.14419]
[1745362875331,6.322,1747.5,1747.4,1.14419]
[1745362875523,6.33059944,1747.5,1747.4,2.77959]
[1745362875724,7.47471944,1747.5,1747.4,1.6354]
[1745362875923,6.33059944,1747.5,1747.4,1.6354]
[1745362876120,6.33059944,1747.5,1747.4,2.77959]
[1745362878129,8.05639944,1747.5,1747.4,2.77959]
[1745362878522,1.14432,1747.2,1747.0,1.14442]
[1745362878727,3.2078,1747.3,1746.8,8.1006]
[1745362878928,2.87023,1747.1,1746.9,1.14451]
[1745362879335,2.87023,1747.1,1746.9,2.74261]
[1745362879532,2.87023,1747.1,1746.9,1.5981]
[1745362879735,1.14445,1747.0,1746.9,1.5981]
[1745362879927,2.87025,1747.0,1746.9,1.5981]
[1745362880124,9.19225,1747.0,1746.8,4.13615]
[1745362880434,8.0478,1747.0,1746.9,1.14451]
[1745362880633,8.0478,1747.0,1746.9,2.78461]
[1745362881935,1.14451,1746.9,1746.8,1.14454]
[1745362882135,2.81821,1746.9,1746.8,1.14454]
[1745362882334,1.6737,1746.9,1746.8,1.14454]
[1745362882839,2.81821,1746.9,1746.7,5.9925]
[1745362883138,1.6737,1746.9,1746.8,1.14458]
[1745362884531,2.81821,1746.9,1746.8,1.14458]
[1745362884727,9.1178,1747.1,1747.0,1.14445]
[1745362885133,5.91,1747.1,1747.0,1.14445]
[1745362885440,7.05438,1747.1,1747.0,1.14445]
[1745362885737,5.91,1747.1,1747.0,1.14445]
[1745362886125,12.232,1747.1,1747.0,1.14445]
[1745362887030,12.232,1747.1,1747.0,4.49335]
[1745362888231,1.14445,1747.0,1746.9,1.5969]
[1745362888525,12.232,1747.1,1747.0,1.14445]
[1745362888731,13.8996,1747.1,1747.0,2.88405]
[1745362889538,7.9896,1747.1,1747.0,2.88405]
[1745362889726,6.322,1747.1,1747.0,2.88405]
[1745362890129,8.0606,1747.1,1747.0,2.88405]
[1745362890334,9.20498,1747.1,1747.0,1.7396]
[1745362890535,9.20498,1747.1,1746.9,2.74137]
[1745362891137,1.14445,1747.0,1746.9,1.5969]
[1745362891341,1.14457,1746.9,1746.7,4.35241]
[1745362891539,1.7386,1746.8,1746.7,4.35241]
[1745362891934,1.7386,1746.8,1746.7,6.00221]
[1745362892330,6.322,1747.1,1746.9,1.14445]
[1745362892331,7.46641,1747.1,1746.9,1.14445]
[1745362892538,9.20501,1747.1,1746.9,1.14445]
[1745362892738,9.20501,1747.1,1746.7,7.71921]
[1745362892739,2.88301,1747.1,1747.0,1.14445]
[1745362892935,2.88301,1747.1,1746.9,1.14446]
[1745362893135,2.88301,1747.1,1747.0,1.14445]
[1745362893344,8.0606,1747.1,1747.0,1.14445]
[1745362893544,9.20498,1747.1,1746.9,1.14447]
[1745362893842,12.41278,1747.1,1746.9,1.14447]
[1745362894043,11.2684,1747.1,1747.0,1.14445]
[1745362894546,8.0606,1747.1,1747.0,1.14445]
[1745362895241,8.0606,1747.1,1747.0,2.79165]
[1745362895541,9.20504,1747.1,1747.0,1.14445]
[1745362895737,1.14445,1747.0,1746.9,1.4927]
[1745362895947,1.6681,1747.0,1746.9,2.63719]
[1745362896138,7.9901,1747.0,1746.9,2.63719]
[1745362897145,9.13455,1747.0,1746.9,1.4927]
[1745362897339,9.13455,1747.0,1746.8,2.85314]
[1745362897538,1.6681,1746.9,1746.8,2.85314]
[1745362897845,2.81261,1746.9,1746.7,3.2078]
[1745362898047,2.81261,1746.9,1746.7,4.35239]
[1745362898248,2.81268,1746.8,1746.6,1.14467]
[1745362898446,1.6681,1746.7,1746.6,1.14467]
[1745362898842,1.6681,1746.7,1746.6,2.81547]
[1745362899750,1.4853,1746.9,1746.8,1.14458]
[1745362899951,3.1048,1746.9,1746.8,1.14458]
[1745362900247,1.6195,1746.9,1746.8,1.14458]
[1745362900751,2.76401,1746.9,1746.7,2.81539]
[1745362901150,1.6195,1746.8,1746.7,2.81539]
[1745362902445,5.91,1747.0,1746.9,1.14451]
[1745362902643,1.7333,1747.1,1747.0,1.14445]
[1745362903239,8.0553,1747.1,1747.0,1.14445]
[1745362903745,6.322,1747.1,1747.0,2.83005]
[1745362905151,1.7333,1747.2,1747.1,1.14438]
[1745362905350,1.7333,1747.2,1747.1,2.82358]
[1745362905853,0.00859944,1747.5,1747.4,1.14419]
[1745362906146,0.00859944,1747.5,1747.4,4.35199]
[1745362906547,0.00859944,1747.5,1747.4,5.87249]
[1745362907251,1.642,1747.8,1747.7,1.14399]
[1745362907451,3.2078,1747.9,1747.8,1.14392]
[1745362907652,4.8498,1747.9,1747.8,1.14392]
[1745362907853,1.642,1747.9,1747.8,1.14392]
[1745362908549,0.00859944,1748.0,1747.9,1.14386]
[1745362908755,1.74499944,1748.0,1747.9,1.14386]
[1745362911253,8.06699944,1748.0,1747.9,1.14386]
[1745362911850,9.21083944,1748.0,1747.8,1.14388]
[1745362912754,8.06699944,1748.0,1747.9,1.14386]
[1745362912964,9.21080944,1748.0,1747.8,1.14389]
[1745362913164,8.06699944,1748.0,1747.9,1.14386]
[1745362913763,8.06699944,1748.0,1747.7,1.68779944]
[1745362913963,1.14392,1747.8,1747.7,0.00859944]
[1745362914163,7.46592,1747.8,1747.7,0.00859944]
[1745362914462,6.322,1747.8,1747.7,0.00859944]
[1745362914662,6.322,1747.8,1747.7,1.15258944]
[1745362914974,6.322,1747.8,1747.7,0.00859944]
[1745362915180,8.0798,1747.8,1747.7,0.00859944]
[1745362915472,6.322,1747.8,1747.7,1.15258944]
[1745362915868,6.322,1747.8,1747.7,2.76938944]
[1745362916667,4.07719888,1747.8,1747.7,4.34568944]
[1745362916972,4.07719888,1747.8,1747.7,9.34568944]
[1745362917167,0.00859944,1748.0,1747.9,1.14386]
[1745362917768,0.00859944,1748.0,1747.9,2.75376]
[1745362917964,0.00859944,1748.0,1747.8,5.84079]
[1745362918168,1.14388,1747.9,1747.7,1.15256944]
[1745362918368,1.7612,1747.8,1747.7,1.15256944]
[1745362919173,2.90512,1747.8,1747.7,0.00859944]
[1745362920272,12.28192,1747.8,1747.7,0.00859944]
[1745362920469,1.14419,1747.4,1747.2,4.35209]
[1745362920683,1.6301,1747.3,1747.1,1.14436]
[1745362920975,1.6301,1747.3,1747.2,1.14432]
[1745362921169,7.9521,1747.3,1747.2,1.14432]
[1745362921967,7.9521,1747.3,1747.2,2.77062]
[1745362922167,5.06471056,1747.3,1747.2,10.97842]
[1745362922467,1.6301,1747.8,1747.7,1.14399]
[1745362922667,1.15240944,1748.0,1747.8,1.14389]
[1745362923076,1.6301,1747.9,1747.8,1.14389]
[1745362923268,1.6301,1747.9,1747.8,2.76359]
[1745362923576,1.6301,1747.9,1747.7,3.1361]
[1745362923767,1.6301,1747.9,1747.8,1.14392]
[1745362924174,7.9521,1747.9,1747.8,1.14392]
[1745362924573,7.9521,1747.9,1747.7,4.28005]
[1745362924768,1.6624,1747.8,1747.7,4.28005]
[1745362924967,1.6624,1747.8,1747.7,1.14395]
[1745362925573,0.00859944,1748.0,1747.9,1.14386]
[1745362925777,1.67099944,1748.0,1747.9,1.14386]
[1745362925980,0.00859944,1748.0,1747.9,1.14386]
[1745362926165,0.00859944,1748.0,1747.9,9.13716]
[1745362926166,6.33059944,1748.0,1747.9,9.13716]
[1745362926367,6.33059944,1748.0,1747.9,10.80856]
[1745362926779,6.33059944,1748.0,1747.9,15.80856]
[1745362927173,0.00859944,1748.0,1747.9,15.80856]
[1745362928674,9.44e-06,1748.0,1747.9,15.80856]
[1745362928875,9.44e-06,1748.0,1747.9,21.63056]
[1745362930380,1.1433,1748.8,1747.9,21.63056]
[1745362930381,9.1178,1749.3,1748.0,2.85949]
[1745362930678,1.623,1749.1,1748.6,6.06624]
[1745362930877,2.7661,1749.1,1748.8,1.14321]
[1745362931076,4.35105,1748.9,1748.7,5.066]
[1745362931284,1.623,1748.8,1748.4,3.2078]
[1745362931581,1.623,1748.8,1748.4,4.35132]
[1745362931582,1.14342,1748.6,1748.4,4.35132]
[1745362931878,1.623,1748.5,1748.4,4.35132]
[1745362932082,1.623,1748.5,1748.4,6.05302]
[1745362932580,10.26071,1749.4,1749.2,1.14299]
[1745362932777,5.85519,1749.4,1749.1,1.14302]
[1745362933181,12.17719,1749.4,1749.1,1.14302]
[1745362933478,1.14303,1749.2,1748.9,4.7145]
[1745362933783,1.14306,1749.2,1748.9,1.14319]
[1745362933985,1.7079,1749.1,1749.0,1.14314]
[1745362934279,1.14264,1749.8,1749.5,1.14276]
[1745362934489,9.1178,1749.7,1749.2,6.208]
[1745362934672,1.1428,1749.6,1749.3,1.14293]
[1745362934876,1.14282,1749.5,1749.2,1.14296]
[1745362935077,7.46482,1749.5,1749.3,1.14294]
[1745362935279,6.322,1749.5,1749.4,1.14288]
[1745362935976,6.322,1749.5,1749.4,2.89858]
[1745362936179,6.322,1749.5,1749.4,1.14288]
[1745362937086,6.322,1749.5,1749.4,7.64888]
[1745362937275,1.604,1749.7,1749.6,1.14275]
[1745362938081,7.926,1749.7,1749.6,1.14275]
[1745362940478,5.16029,1749.7,1749.6,1.14275]
[1745362940681,5.16029,1749.7,1749.6,4.35055]
[1745362941181,1.6051,1750.0,1749.9,1.14255]
[1745362941386,5.8688,1750.0,1749.6,4.8287]
[1745362941574,4.7263,1750.0,1749.6,4.8287]
[1745362941781,4.7263,1750.0,1749.9,1.14255]
[1745362941974,5.91,1750.1,1749.5,4.3616]
[1745362941975,5.91,1750.1,1750.0,1.14249]
[1745362942182,3.2078,1750.6,1750.3,1.14229]
[1745362942183,7.4812,1750.4,1750.3,1.14229]
[1745362942378,7.4812,1750.4,1750.0,2.85622]
[1745362942587,1.4691,1750.5,1750.1,5.062]
[1745362942786,1.4691,1750.5,1749.9,2.85631]
[1745362942988,1.14232,1750.3,1750.1,1.1424]
[1745362943287,4.87629,1750.3,1750.0,2.8562]
[1745362943487,4.87629,1750.3,1750.2,1.14236]
[1745362943883,4.87629,1750.3,1750.2,9.30686]
[1745362945289,4.87629,1750.3,1750.1,1.14236]
[1745362945588,3.3527,1750.2,1749.9,8.2688]
[1745362945789,4.49508,1750.2,1750.0,1.14245]
[1745362945989,3.3527,1750.2,1749.9,4.35032]
[1745362946191,9.6747,1750.2,1750.1,1.14242]
[1745362946388,10.81708,1750.2,1749.9,3.2078]
[1745362946594,1.14245,1750.1,1749.9,1.14253]
[1745362946887,1.7086,1750.0,1749.7,3.2078]
[1745362947083,2.89077,1749.9,1749.7,1.14266]
[1745362947286,1.7086,1749.8,1749.7,1.14266]
[1745362947691,1.7086,1749.8,1749.6,5.042]
[1745362947893,3.3527,1749.8,1749.7,1.14268]
[1745362948091,9.6747,1749.8,1749.7,1.14268]
[1745362948992,9.6747,1749.8,1749.6,0.00857436]
[1745362949287,12.8825,1749.8,1749.6,0.00857436]
[1745362949488,1.14268,1749.7,1749.6,0.00857436]
[1745362949790,2.90568,1749.7,1749.6,0.00857436]
[1745362949996,1.763,1749.7,1749.6,1.15132436]
[1745362950195,8.085,1749.7,1749.6,1.15132436]
[1745362951594,9.22768,1749.7,1749.6,0.00857436]
[1745362951995,12.43548,1749.7,1749.6,0.00857436]
[1745362952194,8.085,1749.7,1749.6,0.00857436]
[1745362952395,9.22768,1749.7,1749.6,0.00857436]
[1745362953283,12.43548,1749.7,1749.6,0.00857436]
[1745362954395,9.22768,1749.7,1749.6,0.00857436]
[1745362954602,8.085,1749.7,1749.6,1.15132436]
[1745362954791,9.22768,1749.7,1749.6,1.15132436]
[1745362955197,5.13827,1749.7,1749.6,14.40112436]
[1745362955690,5.13827,1749.7,1749.6,9.40112436]
[1745362955897,5.13827,1749.7,1749.6,16.06022436]
[1745362956294,0.00857436,1749.9,1749.8,1.14262]
[1745362957195,6.33057436,1749.9,1749.8,1.14262]
[1745362960406,6.33057436,1749.9,1749.8,4.35042]
[1745362961503,6.33057436,1749.9,1749.6,9.91747436]
[1745362961704,1.6453,1749.8,1749.7,1.14268]
[1745362962293,7.9673,1749.8,1749.7,2.94398]
[1745362962496,9.10993,1749.8,1749.6,6.19330436]
[1745362962800,10.80275,1749.8,1749.6,1.15130436]
[1745362963694,10.80276,1749.8,1749.6,1.15131436]
[1745362964102,9.6601,1749.8,1749.7,1.14268]
[1745362964599,7.9673,1749.8,1749.7,1.14268]
[1745362964803,6.322,1749.8,1749.7,2.81148]
[1745362965000,6.322,1749.8,1749.7,6.13548]
[1745362966905,6.322,1749.8,1749.7,9.34328]
[1745362967802,6.322,1749.8,1749.7,14.38528]
[1745362968305,0.00857436,1749.9,1749.8,1.14262]
[1745362968507,0.00857436,1749.9,1749.8,2.88492]
[1745362968902,0.00857436,1749.9,1749.8,1.14262]
[1745362969097,6.33057436,1749.9,1749.8,1.14262]
[1745362969298,6.33057436,1749.9,1749.8,6.14402]
[1745362969506,5.14840436,1749.9,1749.8,14.42432]
[1745362969811,1.6619,1750.3,1750.2,1.14236]
[1745362970008,1.7878,1750.5,1750.3,1.14227]
[1745362970215,6.322,1750.4,1750.3,1.14227]
[1745362970697,7.46424,1750.4,1750.2,1.14231]
[1745362970899,9.18014,1750.4,1750.2,1.14231]
[1745362971098,8.0379,1750.4,1750.3,1.14229]
[1745362971299,8.0379,1750.4,1750.1,8.2498]
[1745362971498,9.18013,1750.4,1750.2,1.14232]
[1745362971705,9.18014,1750.4,1750.2,1.14231]
[1745362972307,1.14236,1750.2,1750.1,5.042]
[1745362972512,1.14236,1750.2,1750.0,1.14243]
[1745362972702,1.6759,1750.1,1750.0,1.14243]
[1745362973300,7.9979,1750.1,1750.0,1.14243]
[1745362978323,7.9979,1750.1,1749.9,1.14255]
[1745362978617,5.1291,1750.0,1749.9,1.14255]
[1745362979217,11.4511,1750.0,1749.9,1.14255]
[1745362983819,8.012,1750.0,1749.9,1.14255]
[1745362985726,8.012,1750.0,1749.6,0.00857436]
[1745362985925,1.14268,1749.7,1749.6,0.00857436]
[1745362986125,7.46468,1749.7,1749.6,0.00857436]
[1745362986320,3.2078,1750.3,1750.2,1.14236]
[1745362986527,1.7597,1750.4,1750.3,1.14229]
[1745362986733,1.7597,1750.4,1750.1,2.85598]
[1745362986734,0.00567446,1750.5,1750.4,1.14223]
[1745362987331,0.00567446,1750.5,1750.3,1.14227]
[1745362987523,1.71817446,1750.5,1750.4,1.14223]
[1745362988027,2.86034446,1750.5,1750.3,1.14224]
[1745362988228,8.04017446,1750.5,1750.3,1.14224]
[1745362988432,1.7125,1750.4,1750.3,1.14224]
[1745362988931,1.7125,1750.4,1750.3,1.92787489]
[1745362989333,8.0345,1750.4,1750.3,1.92787489]
[1745362990520,6.322,1750.4,1750.3,1.92787489]
[1745362990724,6.322,1750.4,1750.3,3.67207489]
[1745362991020,0.00567446,1750.5,1750.4,1.14223]
[1745362991225,7.6571,1751.2,1751.0,1.14181]
[1745362991430,1.7471,1751.1,1751.0,1.14181]
[1745362991727,1.14167,1751.3,1751.0,0.78436181]
[1745362991933,1.7471,1751.2,1751.1,0.78436181]
[1745362992123,1.7471,1751.2,1751.1,1.92613181]
[1745362992326,8.0691,1751.2,1751.1,1.92613181]
[1745362992634,8.0691,1751.2,1751.1,0.78436181]
[1745362992836,12.4186,1751.2,1751.1,0.78436181]
[1745362993331,8.0691,1751.2,1751.1,0.78436181]
[1745362993536,8.0691,1751.2,1751.1,1.92502883]
[1745362994531,8.0691,1751.2,1751.1,0.78325883]
[1745362994737,8.0691,1751.2,1751.1,1.92502883]
[1745362994933,8.0691,1751.2,1751.1,0.78325883]
[1745362995434,9.2108,1751.2,1751.1,0.78325883]
[1745362995629,12.4186,1751.2,1751.1,0.78325883]
[1745362995938,16.2769,1751.2,1750.6,1.14207]
[1745362996230,3.2078,1751.0,1750.7,1.142]
[1745362996430,6.30852,1750.9,1750.7,1.14197]
[1745362996736,1.6944,1750.8,1750.7,1.14197]
[1745362996927,2.83636,1750.8,1750.4,9.36170704]
[1745362997129,1.14203,1750.7,1750.6,0.00857436]
[1745362997324,1.14203,1750.7,1750.4,7.61720704]
[1745362997325,1.14216,1750.5,1750.4,7.61720704]
[1745362997539,1.14223,1750.4,1750.3,3.63951312]
[1745362997833,1.14223,1750.4,1750.2,14.93294075]
[1745362997834,1.14255,1749.9,1749.8,12.3738723]
[1745362998027,1.14255,1749.9,1749.8,11.2312723]
[1745362998235,7.46455,1749.9,1749.8,11.2312723]
[1745362998429,8.0164,1749.9,1749.8,12.3738923]
[1745362999538,9.15895,1749.9,1749.8,12.3738923]
[1745362999841,9.15895,1749.9,1749.7,1.15120436]
[1745363000739,1.14262,1749.8,1749.7,0.00857436]
[1745363001040,1.7117,1749.8,1749.7,1.15125436]
[1745363001240,8.0337,1749.8,1749.7,1.15125436]
[1745363001540,6.322,1749.8,1749.7,1.15125436]
[1745363001744,6.322,1749.8,1749.7,2.86885436]
[1745363002832,7.46462,1749.8,1749.7,0.00857436]
[1745363003232,9.17902,1749.8,1749.7,0.00857436]
[1745363004537,8.0364,1749.8,1749.7,0.00857436]
[1745363004728,9.17902,1749.8,1749.7,0.00857436]
[1745363004934,8.0364,1749.8,1749.7,1.15125436]
[1745363005136,9.17902,1749.8,1749.7,0.00857436]
[1745363005634,6.322,1749.8,1749.7,1.15125436]
[1745363005840,6.322,1749.8,1749.7,2.82035436]
[1745363006028,7.46462,1749.8,1749.7,1.67767436]
[1745363006233,9.23172,1749.8,1749.7,0.00857436]
[1745363008043,9.23172,1749.8,1749.7,0.78651465]
[1745363008743,12.43952,1749.8,1749.7,0.78651465]
[1745363009945,14.17352,1749.8,1749.7,0.78651465]
[1745363012546,25.08352,1749.8,1749.7,0.78651465]
[1745363012845,1.14288,1749.4,1749.3,1.14293]
[1745363013036,1.14288,1749.4,1749.3,1.920266]
[1745363013445,2.89198,1749.4,1749.3,1.920266]
[1745363013649,1.7491,1749.4,1749.3,1.920266]
[1745363014352,9.21398,1749.4,1749.3,1.920266]
[1745363015354,9.21398,1749.4,1749.3,0.777336]
[1745363015640,11.02968,1749.4,1749.3,0.777336]
[1745363017141,11.02968,1749.4,1749.3,1.920276]
[1745363017447,11.02968,1749.4,1749.3,0.777336]
[1745363018044,11.02968,1749.4,1749.3,1.920276]
[1745363018247,9.21398,1749.4,1749.3,0.777336]
[1745363018849,9.21398,1749.4,1749.3,0.077336]
[1745363019047,1.14294,1749.3,1749.2,0.00857436]
[1745363019249,6.07674,1749.3,1749.2,0.00857436]
[1745363020254,12.39874,1749.3,1749.2,0.00857436]
[1745363020445,18.30874,1749.3,1749.2,0.00857436]
[1745363020746,22.72357267,1749.3,1748.2,1.14362]
[1745363020951,1.14358,1748.4,1748.2,1.7644]
[1745363021149,6.322,1748.4,1748.3,1.1436]
[1745363021655,7.46557,1748.4,1748.2,2.90801]
[1745363021947,1.1436,1748.3,1748.2,1.77297436]
[1745363022147,6.322,1748.3,1748.2,2.91660436]
[1745363022842,7.4656,1748.3,1748.2,1.77297436]
[1745363023042,6.322,1748.3,1748.2,1.15223436]
[1745363024849,6.322,1748.3,1748.2,0.00857436]
[1745363025248,6.322,1748.3,1748.2,1.74057436]
[1745363025442,6.322,1748.3,1748.2,2.88423436]
[1745363025643,7.4656,1748.3,1748.2,1.74057436]
[1745363025942,9.2829,1748.3,1748.2,1.74057436]
[1745363026341,9.2829,1748.3,1748.2,0.00857436]
[1745363026648,12.4907,1748.3,1748.2,0.00857436]
[1745363030948,12.4907,1748.3,1748.2,0.77418481]
[1745363035060,12.4907,1748.3,1748.2,0.00857436]
[1745363035559,23.4007,1748.3,1748.2,0.00857436]
[1745363035860,23.4007,1748.3,1748.2,4.36e-06]
[1745363036266,23.49969906,1748.3,1748.2,4.36e-06]
[1745363036958,23.49968283,1748.3,1748.2,4.36e-06]
[1745363039959,23.4007,1748.3,1748.2,4.36e-06]
[1745363040262,23.49966726,1748.3,1748.2,4.36e-06]
[1745363043867,23.49966726,1748.3,1747.3,1.8066]
[1745363043868,1.14419,1747.4,1747.3,1.8066]
[1745363044163,1.14419,1747.4,1747.3,4.37246613]
[1745363044363,1.14419,1747.4,1747.3,0.76676613]
[1745363044570,2.90009,1747.4,1747.3,0.76676613]
[1745363044954,6.10789,1747.4,1747.3,0.76676613]
[1745363045359,12.01789,1747.4,1747.3,0.76676613]
[1745363045754,1.14425,1747.3,1747.2,3.48737436]
[1745363045955,2.83795,1747.3,1747.2,4.25454768]
[1745363046164,9.15995,1747.3,1747.2,4.25454768]
[1745363047967,7.46625,1747.3,1747.2,5.39886768]
[1745363048160,7.46625,1747.3,1747.2,4.25454768]
[1745363048763,7.46625,1747.3,1747.2,4.25558483]
[1745363051471,9.19275,1747.3,1747.2,4.25617908]
[1745363051869,7.46625,1747.3,1747.2,4.25617908]
[1745363053164,9.19275,1747.3,1747.2,4.25617908]
[1745363053364,9.19275,1747.3,1747.2,0.77757719]
[1745363054274,11.03175,1747.3,1747.2,0.07757719]
[1745363054479,1.14445,1747.0,1746.9,3.4478]
[1745363054678,4.35225,1747.0,1746.9,3.4478]
[1745363055579,4.35225,1747.0,1746.9,5.1431]
[1745363057568,6.17575,1747.0,1746.9,5.1431]
[1745363057766,1.14451,1746.9,1746.8,0.0057163]
[1745363058080,2.96801,1746.9,1746.8,0.0057163]
[1745363058568,4.66071,1746.9,1746.8,0.0057163]
[1745363059281,10.98271,1746.9,1746.8,0.0057163]
[1745363059578,21.89271,1746.9,1746.8,6.3e-06]
[1745363060882,21.99179331,1746.9,1746.8,6.3e-06]
[1745363064478,21.99175022,1746.9,1746.8,6.3e-06]
[1745363064978,13.47555022,1746.9,1746.8,6.3e-06]
[1745363065181,7.05451,1746.9,1746.8,6.3e-06]
[1745363065377,7.05451,1746.9,1746.8,1.6931063]
[1745363065773,7.05451,1746.9,1746.8,6.3e-06]
[1745363065975,8.87581,1746.9,1746.8,6.3e-06]
[1745363066170,15.19781,1746.9,1746.8,6.3e-06]
[1745363071392,15.29690291,1746.9,1746.8,6.3e-06]
[1745363071583,15.19781,1746.9,1746.8,6.3e-06]
[1745363074888,15.19781,1746.9,1746.8,0.75953658]
[1745363075284,8.87581,1746.9,1746.8,0.75953658]
[1745363076687,1.14464,1746.7,1746.6,10.0161]
[1745363076990,4.35244,1746.7,1746.6,9.1604]
[1745363077182,16.58444,1746.7,1746.6,2.8626]
[1745363077490,18.38084,1746.7,1746.6,2.8626]
[1745363077784,1.14517,1745.9,1745.3,92.79463422]
[1745363077998,2.86245,1746.2,1746.0,3.6505]
[1745363078190,4.35277,1746.2,1746.1,1.826]
[1745363078392,6.14197,1746.2,1746.1,1.826]
[1745363080586,4.35277,1746.2,1746.1,1.826]
[1745363081493,4.35277,1746.2,1746.1,6.826]
[1745363082490,4.35277,1746.2,1746.1,1.826]
[1745363087095,3.2078,1746.2,1746.1,1.826]
[1745363087297,10.90257436,1746.3,1746.2,1.14497]
[1745363087503,0.00857436,1746.3,1746.2,1.14497]
[1745363087798,1.15348436,1746.3,1746.2,7.87417]
[1745363088294,0.00857436,1746.3,1746.2,7.87417]
[1745363088699,0.00857436,1746.3,1746.2,8.62473772]
[1745363089298,0.00857436,1746.3,1746.2,8.62473613]
[1745363091102,0.00857436,1746.3,1746.2,8.62477272]
[1745363091994,3.2078,1746.5,1746.4,1.14484]
[1745363092194,3.2078,1746.5,1746.4,1.89544272]
[1745363092606,1.14475,1746.6,1746.5,1.14478]
[1745363092795,1.14475,1746.6,1746.5,1.89538272]
[1745363093007,1.14475,1746.6,1746.5,0.75042676]
[1745363093195,1.14475,1746.6,1746.5,2.58372676]
[1745363093798,1.14475,1746.6,1746.5,3.72850676]
[1745363094203,1.14475,1746.6,1746.5,2.58372676]
[1745363094504,1.14475,1746.6,1746.5,3.72850676]
[1745363094703,0.00857436,1746.7,1746.6,1.14471]
[1745363094899,0.00857436,1746.7,1746.6,3.65313676]
[1745363095300,1.15321436,1746.7,1746.6,2.50842676]
[1745363095598,1.15321436,1746.7,1746.6,3.65313676]
[1745363096006,0.00857436,1746.7,1746.6,3.65313676]
[1745363096305,1.15321436,1746.7,1746.6,0.75042676]
[1745363096802,1.14471,1746.6,1746.5,1.758]
[1745363097102,2.98791,1746.6,1746.5,2.5079931]
[1745363097807,2.98791,1746.6,1746.5,0.7499931]
[1745363098101,2.98791,1746.6,1746.5,2.4664931]
[1745363098603,2.98791,1746.6,1746.5,1.7165]
[1745363098804,2.98791,1746.6,1746.5,2.46649697]
[1745363099202,2.98791,1746.6,1746.5,0.74999697]
[1745363099903,8.89791,1746.6,1746.5,0.74999697]
[1745363100108,8.89791,1746.6,1746.5,0.74142261]